bitfinex/quotes_ETHUSD_20250702
["timestamp","ask_amount","ask_price","bid_price","bid_amount"]
[1751481779980,25.14064281,2582.2,2582.1,0.02]
[1751481780171,55.14064281,2582.2,2582.1,0.02]
[1751481781096,14.61641669,2582.1,2582.0,0.02]
[1751481781262,45.20376678,2581.6,2581.5,0.02]
[1751481781465,54.02272468,2581.6,2581.5,0.02]
[1751481785088,45.20331715,2581.1,2581.0,0.02]
[1751481785397,54.02427505,2581.1,2581.0,0.02]
[1751481785623,56.29237696,2581.1,2581.0,0.02]
[1751481786195,45.20176781,2580.6,2580.5,0.03051188]
[1751481786485,23.25476781,2580.6,2580.5,0.03051188]
[1751481786872,53.25476781,2580.6,2580.5,0.03051188]
[1751481787099,54.33073781,2580.6,2580.5,0.03051188]
[1751481787462,4.42566855,2580.2,2580.0,0.02]
[1751481787660,66.40909082,2580.2,2580.0,0.02]
[1751481788496,45.43261876,2580.1,2580.0,1e-08]
[1751481788695,45.43261876,2580.1,2579.4,0.02]
[1751481788696,15.23992029,2579.5,2579.4,0.02]
[1751481788861,25.20857157,2579.5,2579.4,0.02]
[1751481789065,55.20857157,2579.5,2579.4,0.02]
[1751481790299,51.33485128,2579.5,2579.4,0.02]
[1751481790797,40.55,2579.5,2579.4,0.02]
[1751481790997,18.061,2579.5,2579.4,0.8346]
[1751481791182,30.55,2580.0,2579.4,0.8346]
[1751481791497,10.0,2579.8,2579.4,0.8346]
[1751481791706,40.0,2580.1,2579.4,0.8346]
[1751481791863,32.006,2580.4,2579.4,0.8346]
[1751481792062,0.1936,2579.5,2579.4,0.8346]
[1751481794890,8.2566,2579.5,2579.4,0.8346]
[1751481795090,8.8066,2579.5,2579.4,0.02]
[1751481795398,19.68726,2579.5,2579.4,0.02]
[1751481796201,11.62426,2579.5,2579.4,0.02]
[1751481796408,0.1936,2579.5,2579.4,0.02]
[1751481796569,0.1936,2579.5,2579.4,0.8391]
[1751481800215,8.059,2579.8,2579.4,0.8391]
[1751481800381,8.059,2579.9,2579.4,0.8391]
[1751481803731,8.057,2579.9,2579.4,0.8391]
[1751481804946,8.057,2580.0,2579.4,0.8391]
[1751481805321,8.077,2580.0,2579.4,0.8391]
[1751481805853,0.02,2580.0,2579.4,0.8391]
[1751481806005,0.02,2580.0,2579.4,4.71]
[1751481806205,0.02,2580.0,2579.7,0.7733]
[1751481806435,0.02,2580.0,2579.8,0.7733]
[1751481806638,0.02,2580.0,2579.9,1.43897119]
[1751481806811,0.02,2580.0,2579.9,0.7733]
[1751481811289,0.02,2580.0,2579.7,0.7582]
[1751481811574,0.55,2579.9,2579.4,0.8063]
[1751481811764,0.55,2579.7,2579.4,0.02]
[1751481811938,8.056,2579.6,2579.4,0.02]
[1751481812539,0.55,2579.8,2579.5,0.8271]
[1751481812945,0.02,2580.0,2579.5,0.8271]
[1751481814857,0.02,2580.0,2579.5,0.8171]
[1751481815670,0.1936,2579.6,2579.5,0.8171]
[1751481816148,8.077,2580.0,2579.5,0.8171]
[1751481816353,0.1936,2579.8,2579.5,0.8171]
[1751481818352,0.02,2580.0,2579.7,0.812]
[1751481818553,0.1936,2579.9,2579.8,0.2818]
[1751481819773,0.1936,2579.9,2579.8,1.035]
[1751481820076,0.1936,2579.9,2579.8,0.7532]
[1751481821254,0.1936,2579.9,2579.6,0.7506]
[1751481821464,0.02,2580.0,2579.6,0.7506]
[1751481821782,0.1936,2579.8,2579.6,0.7506]
[1751481821980,0.02,2580.0,2579.6,0.7506]
[1751481822184,0.1936,2579.9,2579.6,0.7506]
[1751481822592,0.1936,2579.9,2579.6,1.04762]
[1751481822885,0.02,2580.0,2579.6,0.7506]
[1751481825568,0.02,2580.0,2579.4,2.026]
[1751481825569,0.1936,2579.6,2579.4,0.824]
[1751481825771,3.8761945,2579.9,2579.4,0.824]
[1751481825973,0.77721709,2579.8,2579.4,0.824]
[1751481826973,10.77721709,2579.8,2579.4,0.824]
[1751481827174,14.65351399,2579.8,2579.4,0.02]
[1751481827786,10.77721709,2579.8,2579.4,0.02]
[1751481828205,0.55,2579.6,2579.4,0.02]
[1751481830973,4.42672029,2579.5,2579.4,0.02]
[1751481831604,23.24882029,2579.5,2579.4,0.02]
[1751481831788,24.02162254,2579.5,2579.4,0.02]
[1751481833920,10.77280225,2579.5,2579.4,0.02]
[1751481834782,12.65578248,2579.5,2579.4,0.02]
[1751481836319,11.88298023,2579.5,2579.4,0.02]
[1751481836622,8.057,2579.6,2579.4,0.02]
[1751481837580,8.82935833,2579.6,2579.4,0.02]
[1751481837801,8.057,2579.6,2579.4,0.02]
[1751481838004,8.82935833,2579.6,2579.4,0.02]
[1751481839028,3.87672029,2579.5,2579.4,0.02]
[1751481839192,1.65825873,2579.5,2579.4,0.02]
[1751481839801,8.057,2579.6,2579.4,0.02]
[1751481840199,0.77253391,2579.7,2579.4,0.02]
[1751481840524,8.058,2579.6,2579.4,0.02]
[1751481843624,5.42604049,2579.8,2579.4,0.02]
[1751481843817,8.058,2579.7,2579.4,0.02]
[1751481844128,8.83053391,2579.7,2579.4,0.02]
[1751481844531,8.058,2579.7,2579.4,0.02]
[1751481844723,8.058,2579.6,2579.4,0.02]
[1751481844898,0.77253391,2579.7,2579.5,0.8172]
[1751481845237,0.1936,2579.6,2579.5,0.8172]
[1751481845797,0.02,2580.0,2579.5,0.8172]
[1751481846138,0.1936,2579.8,2579.5,0.8172]
[1751481850434,0.02,2580.0,2579.5,0.8172]
[1751481850636,0.2136,2580.0,2579.6,0.94039765]
[1751481850838,0.2136,2580.0,2579.7,0.7622]
[1751481854232,0.02,2580.0,2579.7,0.7622]
[1751481854566,0.02,2580.0,2579.9,0.8328]
[1751481854859,0.02,2580.0,2579.9,3.02899885]
[1751481855047,0.02,2580.0,2579.9,0.8328]
[1751481855248,0.02,2580.0,2579.6,0.7644]
[1751481857561,0.02,2580.0,2579.7,2.006]
[1751481859136,0.02,2580.0,2579.6,9.18585281]
[1751481859341,0.02,2580.0,2579.7,2.006]
[1751481864981,0.1936,2579.9,2579.7,2.006]
[1751481865302,0.02,2580.0,2579.9,0.9585]
[1751481869110,0.02,2580.0,2579.9,4.83461922]
[1751481869314,0.02,2580.9,2580.0,10.0]
[1751481869622,0.02,2580.9,2580.8,9.17505281]
[1751481869774,0.02,2580.9,2580.8,11.17905281]
[1751481869978,0.02,2580.9,2580.8,2.004]
[1751481870186,0.1936,2580.8,2580.6,4.69]
[1751481873214,0.02,2580.9,2580.7,0.7917]
[1751481873687,0.02,2580.9,2580.8,8.42145281]
[1751481873884,0.02,2580.9,2580.8,1.40967528]
[1751481874419,0.02,2580.9,2580.8,5.28444279]
[1751481874613,0.02,2580.9,2580.8,1.60327528]
[1751481875000,0.02,2580.9,2580.8,3.60727528]
[1751481875589,0.02,2580.9,2580.8,2.004]
[1751481876013,0.02,2580.9,2580.8,2.8315]
[1751481876197,0.02,2580.9,2580.8,6.89986751]
[1751481877231,0.02,2580.9,2580.8,3.0251]
[1751481877601,0.02,2580.9,2580.8,6.89986751]
[1751481877836,0.02,2580.9,2580.8,6.21989751]
[1751481879237,0.02,2580.9,2580.8,24.78466502]
[1751481879804,0.02,2580.9,2580.8,18.95989751]
[1751481882009,0.02,2580.9,2580.8,8.90589751]
[1751481882307,0.02,2580.9,2580.8,15.5705]
[1751481884910,0.02,2580.9,2580.8,29.44526751]
[1751481886210,0.02,2581.1,2581.0,14.64296726]
[1751481886409,0.02,2581.1,2581.0,35.81304799]
[1751481886621,0.02,2581.1,2581.0,40.01997223]
[1751481888541,0.7604,2582.4,2581.6,0.8176]
[1751481888743,0.1936,2582.2,2581.7,33.17308073]
[1751481888923,0.1936,2582.2,2581.8,0.1936]
[1751481889123,0.1936,2582.2,2581.9,8.047]
[1751481893853,0.1936,2582.2,2581.8,4.20692424]
[1751481893854,0.8027,2582.1,2581.8,0.1936]
[1751481894055,0.1936,2581.8,2581.5,2.003]
[1751481894260,0.8027,2582.1,2581.6,0.2003]
[1751481894447,0.1936,2582.0,2581.6,0.3939]
[1751481894642,0.1936,2582.0,2581.6,8.4399]
[1751481894848,0.1936,2582.0,2581.7,1.04429]
[1751481895048,0.1936,2582.0,2581.6,8.4399]
[1751481895355,0.7761,2581.9,2581.6,8.046]
[1751481895558,0.1936,2581.7,2581.3,0.1936]
[1751481895855,0.7761,2581.6,2581.3,2.1966]
[1751481897658,0.7761,2581.6,2581.2,2.003]
[1751481897847,0.1936,2581.3,2581.2,2.003]
[1751481898052,0.01,2582.2,2581.2,30.77278238]
[1751481898233,0.01,2582.2,2581.7,0.7688]
[1751481898558,0.01,2582.2,2581.7,12.68715348]
[1751481898754,0.01,2582.2,2581.7,8.8138]
[1751481899158,0.01,2582.2,2581.8,2.003]
[1751481899348,0.01,2582.2,2581.8,4.78423771]
[1751481900971,0.01,2582.2,2581.8,8.65743321]
[1751481901345,0.01,2582.2,2581.8,4.78423771]
[1751481901562,0.01,2582.2,2581.9,8.045]
[1751481903673,0.01,2582.2,2581.8,4.78323771]
[1751481903880,0.01,2582.2,2581.8,12.82823771]
[1751481904080,0.01,2582.2,2581.9,1.35970377]
[1751481904376,0.7578,2582.1,2581.9,8.044]
[1751481904874,0.7578,2582.1,2581.8,2.78123771]
[1751481905080,0.7578,2582.1,2581.8,8.044]
[1751481905582,0.01,2582.2,2581.8,11.91718248]
[1751481905881,0.01,2582.2,2581.8,8.044]
[1751481908053,0.1936,2581.8,2581.3,10.9785]
[1751481908376,0.1936,2581.8,2581.3,27.97452439]
[1751481908578,0.1936,2581.8,2581.4,3.70233244]
[1751481910184,0.1936,2581.8,2581.5,8.044]
[1751481910881,0.1936,2581.8,2581.4,3.70233244]
[1751481910882,1.0265,2581.8,2581.4,3.70233244]
[1751481911075,0.1936,2581.6,2581.4,8.043]
[1751481912263,0.01,2582.2,2581.5,13.12208073]
[1751481912469,0.2036,2582.2,2581.7,3.8733439]
[1751481912670,0.01,2582.2,2581.8,8.81769107]
[1751481912985,0.1936,2581.9,2581.8,8.81769107]
[1751481913381,0.01,2582.2,2581.8,0.77469107]
[1751481913600,0.2036,2582.2,2581.9,8.043]
[1751481913801,0.2036,2582.2,2581.9,9.02637911]
[1751481914178,0.01,2582.2,2581.7,8.043]
[1751481914384,0.1936,2581.9,2581.7,8.043]
[1751481915498,0.01,2582.2,2581.7,8.043]
[1751481915802,0.1936,2582.0,2581.7,8.043]
[1751481916598,0.1936,2582.0,2581.7,11.91639468]
[1751481916773,0.1936,2582.0,2581.8,2.70404754]
[1751481920797,0.1936,2582.0,2581.8,10.74604754]
[1751481921706,0.01,2582.2,2581.8,3.47574754]
[1751481921874,0.01,2582.2,2581.9,8.2356]
[1751481922078,0.01,2582.2,2581.9,0.1936]
[1751481922276,0.2036,2582.2,2581.7,10.1936]
[1751481922601,0.1936,2582.1,2581.8,10.044]
[1751481923188,0.01,2582.2,2581.8,13.91713785]
[1751481923383,0.01,2582.2,2581.9,0.1936]
[1751481923982,0.2036,2582.2,2582.0,8.042]
[1751481927810,0.2036,2582.2,2582.0,16.44759671]
[1751481928611,0.2036,2582.2,2582.0,16.44659671]
[1751481930095,0.8139,2582.1,2581.8,3.25810847]
[1751481930287,0.8139,2582.1,2581.8,11.29910847]
[1751481930486,0.8139,2582.1,2581.9,1.59891085]
[1751481931494,0.8139,2582.1,2581.9,9.63991085]
[1751481931699,1.0075,2582.1,2581.9,9.63991085]
[1751481931899,1.0075,2582.1,2581.9,8.041]
[1751481933918,1.0075,2582.1,2581.7,4.69]
[1751481934103,0.1936,2581.9,2581.8,8.04]
[1751481934616,0.8139,2582.1,2581.8,8.04]
[1751481934816,1.0075,2582.1,2581.8,8.04]
[1751481935120,1.0075,2582.1,2581.8,9.90391967]
[1751481935616,0.1936,2582.1,2581.8,9.90391967]
[1751481935987,0.1936,2582.1,2581.8,8.04]
[1751481936189,0.01,2582.2,2581.9,8.04]
[1751481936920,1.0058,2581.9,2581.8,8.04]
[1751481937123,0.8122,2581.9,2581.6,10.0]
[1751481937294,0.1936,2581.7,2581.2,2.24604706]
[1751481937617,0.8122,2581.6,2581.0,10.30604706]
[1751481937819,0.1936,2581.3,2581.1,11.70360848]
[1751481938419,4.42284755,2582.1,2581.1,11.70360848]
[1751481938420,0.7583,2581.8,2581.1,11.70360848]
[1751481938628,0.1936,2581.6,2581.5,8.40559671]
[1751481939333,0.8124,2582.1,2581.5,9.24615638]
[1751481939638,0.1936,2581.8,2581.6,8.039]
[1751481943650,0.1936,2581.8,2581.7,8.40559671]
[1751481945164,0.01,2582.1,2581.7,8.40559671]
[1751481945325,0.1936,2582.0,2581.8,8.039]
[1751481945655,0.1936,2582.0,2581.9,10.05005638]
[1751481946152,0.1936,2582.0,2581.6,1.0168]
[1751481946340,0.1936,2582.0,2581.8,8.039]
[1751481950419,0.1936,2582.0,2581.6,10.1936]
[1751481950625,0.1936,2582.0,2581.7,8.039]
[1751481951145,0.01,2582.1,2581.6,8.038]
[1751481951344,0.1936,2581.8,2581.6,8.038]
[1751481951724,0.1936,2581.8,2581.5,4.69]
[1751481951930,0.1936,2581.8,2581.5,25.54453638]
[1751481952316,0.2036,2582.1,2581.6,0.1936]
[1751481952542,0.2036,2582.1,2581.8,8.40559671]
[1751481954458,0.01,2582.0,2581.8,8.40559671]
[1751481954657,0.01,2582.0,2581.7,8.038]
[1751481955049,0.1936,2581.9,2581.7,8.038]
[1751481955256,1.0231,2581.9,2581.7,8.038]
[1751481956466,0.1936,2581.9,2581.7,8.038]
[1751481958871,0.1936,2581.9,2581.3,10.0]
[1751481959176,0.01,2582.0,2581.5,8.037]
[1751481959341,0.1936,2581.8,2581.6,1.0037]
[1751481961166,0.01,2582.0,2581.2,0.7925]
[1751481961469,0.1936,2581.6,2581.3,1.998]
[1751481961674,0.1936,2581.6,2581.3,10.034]
[1751481961978,0.1936,2581.6,2581.4,8.40559671]
[1751481962680,0.01,2582.0,2581.4,8.40559671]
[1751481962973,0.1936,2581.8,2581.4,10.71622024]
[1751481963678,0.1936,2581.8,2581.5,0.7639]
[1751481965974,0.78910195,2582.9,2582.5,3.87215356]
[1751481966150,0.8009,2584.0,2582.9,0.8209]
[1751481966462,0.8059,2583.8,2583.1,10.0]
[1751481966841,0.005,2583.8,2583.3,8.40559671]
[1751481967038,0.005,2583.8,2583.4,3.87085465]
[1751481967240,0.005,2583.8,2583.7,18.40559671]
[1751481967443,0.005,2583.8,2583.7,10.0]
[1751481967674,0.005,2583.8,2583.7,18.085]
[1751481967844,0.005,2583.8,2583.5,8.086]
[1751481968050,0.005,2583.8,2583.4,12.28898599]
[1751481968051,0.005,2583.8,2583.6,8.086]
[1751481968550,0.005,2583.8,2583.1,8.086]
[1751481968754,3.8705258,2583.7,2583.1,8.086]
[1751481968950,0.38755258,2583.6,2583.1,8.086]
[1751481969278,0.7564,2583.5,2583.0,8.088]
[1751481970467,0.7564,2583.5,2583.0,8.086]
[1751481971043,0.7564,2583.5,2582.6,0.7611]
[1751481971560,0.46270622,2583.4,2582.7,8.088]
[1751481971772,0.7564,2583.5,2582.7,8.088]
[1751481972154,4.62714338,2583.5,2582.6,1.04861466]
[1751481972445,4.62725218,2583.5,2582.6,0.28751466]
[1751481972745,0.7894,2583.2,2582.4,20.088]
[1751481973364,0.7894,2583.2,2582.4,20.087]
[1751481973883,0.7894,2583.2,2582.4,20.37370083]
[1751481974850,0.55,2583.1,2582.4,8.37070083]
[1751481975052,0.52106332,2583.0,2582.3,19.388]
[1751481975246,0.55,2583.1,2582.3,19.388]
[1751481975851,0.1936,2582.6,2582.3,19.388]
[1751481976253,0.1936,2582.7,2582.3,19.388]
[1751481976849,0.1928,2582.8,2582.4,0.1936]
[1751481977080,0.1928,2582.8,2582.4,4.35198967]
[1751481977295,0.1928,2582.8,2582.5,13.87219931]
[1751481977590,0.1928,2582.8,2582.6,8.078]
[1751481977966,0.2028,2582.8,2582.6,8.078]
[1751481979454,0.01,2582.8,2582.6,8.078]
[1751481979653,0.01,2582.8,2582.7,2.07606]
[1751481979878,0.01,2582.8,2582.7,0.1928]
[1751481981052,0.01,2582.8,2582.5,10.7546]
[1751481981267,0.2028,2582.8,2582.6,8.076]
[1751481981466,0.2028,2582.8,2582.4,0.48983198]
[1751481981688,0.2028,2582.8,2582.5,8.072]
[1751481985592,0.2028,2582.8,2582.5,11.44592606]
[1751481986190,0.2028,2582.8,2582.5,8.072]
[1751481987166,0.01,2582.8,2582.5,8.062]
[1751481987366,0.1936,2582.7,2582.5,8.062]
[1751481988295,0.1936,2582.7,2582.4,18.35523198]
[1751481988904,0.1936,2582.7,2582.4,0.29623198]
[1751481988905,0.9486,2582.7,2582.4,0.29623198]
[1751481989089,0.9486,2582.7,2582.4,8.057]
[1751481989283,0.8115,2583.4,2582.6,10.0]
[1751481989483,0.8115,2583.4,2582.8,3.87176061]
[1751481989807,0.01,2583.1,2582.9,8.067]
[1751481990019,0.01,2583.1,2583.0,14.62396728]
[1751481990217,0.01,2583.1,2583.0,17.48004036]
[1751481992087,0.01,2583.1,2583.0,21.90952636]
[1751481992799,0.01,2583.1,2583.0,23.44535821]
[1751481993409,0.01,2583.1,2583.0,19.01587221]
[1751481993614,0.01,2583.1,2583.0,23.51887221]
[1751481994324,0.01,2583.1,2583.0,28.75887221]
[1751481994490,0.005,2583.8,2583.6,10.7996]
[1751481994691,0.005,2583.8,2583.7,16.61041839]
[1751481994895,0.005,2583.8,2583.7,26.61041839]
[1751481995403,0.005,2583.8,2583.7,27.51146257]
[1751481995914,0.005,2583.8,2583.7,23.64104418]
[1751481996126,0.005,2583.8,2583.7,27.51146257]
[1751481996293,0.005,2583.8,2583.7,27.79839467]
[1751481997229,0.005,2583.8,2583.7,23.92797628]
[1751481997530,0.005,2583.8,2583.7,23.92097628]
[1751481998819,0.005,2583.8,2583.7,4.9669321]
[1751481999018,0.7886,2583.8,2583.0,3.54045233]
[1751481999322,0.1928,2583.5,2583.1,10.0]
[1751481999917,0.1928,2583.5,2583.0,10.2608]
[1751482000211,0.1928,2583.5,2583.1,10.0]
[1751482001718,0.1928,2583.5,2583.2,8.054]
[1751482002017,0.7886,2583.8,2582.7,0.7758]
[1751482002018,4.62158053,2583.7,2582.7,0.7758]
[1751482002316,0.1928,2583.2,2583.0,2.012]
[1751482002499,0.1928,2583.3,2583.0,10.06]
[1751482007637,0.1928,2583.3,2582.9,2.012]
[1751482007933,0.1928,2583.3,2583.0,8.036]
[1751482007934,0.7808,2583.2,2583.0,8.036]
[1751482009624,0.7808,2583.2,2582.7,2.012]
[1751482009802,0.1928,2583.0,2582.7,2.012]
[1751482010144,0.1928,2583.0,2582.8,8.035]
[1751482011633,0.1928,2583.0,2582.8,8.055]
[1751482013316,0.01,2583.3,2582.8,8.055]
[1751482013317,0.2028,2583.3,2582.8,9.2545]
[1751482013667,0.2028,2583.3,2582.9,0.7553]
[1751482013873,0.2028,2583.3,2583.0,8.036]
[1751482014893,0.01,2583.3,2583.0,8.036]
[1751482015161,0.01,2583.3,2583.0,8.2288]
[1751482015362,0.01,2583.3,2583.1,1.28556544]
[1751482015568,0.01,2583.3,2583.2,11.90716754]
[1751482015774,0.01,2583.3,2583.2,8.2288]
[1751482015929,0.01,2583.3,2583.2,12.91056754]
[1751482018782,0.01,2583.3,2583.2,1.0034]
[1751482019087,0.01,2583.3,2583.2,13.0571633]
[1751482019292,0.01,2583.3,2583.2,16.92833084]
[1751482019692,0.01,2583.3,2583.2,13.0571633]
[1751482020922,0.01,2583.3,2582.9,7.5037]
[1751482021205,0.01,2583.3,2582.9,14.727]
[1751482022766,0.01,2583.3,2583.0,3.87137458]
[1751482022963,0.01,2583.3,2583.1,8.034]
[1751482023604,0.01,2583.3,2583.2,9.32346754]
[1751482023762,0.01,2583.3,2583.2,11.59918942]
[1751482024479,0.01,2583.3,2583.2,9.25647421]
[1751482024659,0.01,2583.3,2582.9,20.1332199]
[1751482024865,0.01,2583.3,2583.0,20.032]
[1751482027579,0.01,2583.3,2583.2,13.87116754]
[1751482027793,0.01,2583.3,2583.2,21.90516754]
[1751482028191,0.01,2583.3,2583.2,23.43361987]
[1751482028571,0.01,2583.3,2583.2,26.67675243]
[1751482028871,0.01,2583.3,2583.2,14.77158489]
[1751482029072,0.01,2583.3,2583.2,28.67475243]
[1751482029282,0.01,2583.3,2583.2,46.45342]
[1751482029878,0.01,2583.3,2583.2,44.92496767]
[1751482030481,0.01,2583.3,2583.2,19.92113256]
[1751482030791,0.01,2583.3,2583.2,24.712]
[1751482030995,0.01,2583.3,2583.2,24.9048]
[1751482035178,0.01,2583.3,2583.2,20.2248]
[1751482037078,0.01,2583.3,2583.2,24.90326754]
[1751482037310,0.01,2583.3,2583.2,27.86159429]
[1751482038232,0.01,2583.3,2583.2,13.15112675]
[1751482038390,0.01,2583.3,2583.2,23.18312675]
[1751482039510,0.01,2583.3,2583.2,32.54669429]
[1751482039710,0.01,2583.3,2583.2,34.07589133]
[1751482039886,0.01,2583.3,2583.2,32.54669429]
[1751482040090,0.01,2583.3,2583.2,45.64536186]
[1751482042023,0.01,2583.3,2583.2,18.64352675]
[1751482042187,0.01,2583.3,2583.2,28.67452675]
[1751482042392,0.01,2583.3,2583.2,34.07574372]
[1751482042626,0.01,2583.3,2583.2,32.54569429]
[1751482043324,0.01,2583.3,2583.2,34.07574372]
[1751482044098,0.01,2583.3,2583.2,29.39574372]
[1751482044795,0.01,2583.3,2583.2,25.52457618]
[1751482044996,0.01,2583.3,2583.2,29.39574372]
[1751482046445,0.01,2583.3,2583.2,25.52357618]
[1751482046602,0.01,2583.3,2583.2,19.36474372]
[1751482046802,0.01,2583.3,2583.2,25.52357618]
[1751482047014,0.01,2583.3,2583.2,15.49357618]
[1751482047222,0.01,2583.3,2583.2,27.86469429]
[1751482047433,0.01,2583.3,2583.2,29.39474372]
[1751482048804,0.01,2583.3,2583.2,25.52357618]
[1751482049136,0.01,2583.3,2583.2,27.86469429]
[1751482049730,0.01,2583.3,2583.2,29.39474372]
[1751482050038,0.01,2583.3,2583.2,34.07474372]
[1751482051131,0.01,2583.3,2583.2,47.17341129]
[1751482052645,0.01,2583.3,2583.2,45.64336186]
[1751482055640,0.01,2583.3,2583.2,25.52222914]
[1751482055829,0.01,2583.3,2583.2,23.99152675]
[1751482056339,0.01,2583.3,2583.2,27.86269429]
[1751482056741,0.01,2583.3,2583.2,29.39339668]
[1751482057040,0.01,2583.3,2583.2,43.26764841]
[1751482059326,0.01,2583.3,2583.2,33.23964841]
[1751482059645,0.01,2583.3,2583.2,41.51136186]
[1751482059844,0.01,2583.3,2583.2,43.81764841]
[1751482060056,0.005,2583.8,2583.7,3.87041839]
[1751482060208,0.005,2583.8,2583.7,36.1845278]
[1751482060413,0.005,2583.8,2583.7,36.3773278]
[1751482061308,0.005,2583.8,2583.7,36.9273278]
[1751482061918,0.005,2583.8,2583.7,37.22310522]
[1751482062634,0.005,2583.8,2583.7,29.19210522]
[1751482062816,0.005,2583.8,2583.7,38.66910522]
[1751482063016,0.005,2583.8,2583.7,34.79868683]
[1751482063347,0.005,2583.8,2583.7,24.77168683]
[1751482063511,0.005,2583.8,2583.7,38.66910522]
[1751482063710,0.005,2583.8,2583.7,24.77168683]
[1751482063940,0.005,2583.8,2583.7,34.79868683]
[1751482064658,0.005,2583.8,2583.7,38.66910522]
[1751482065212,0.005,2583.8,2583.7,28.64210522]
[1751482065417,0.005,2583.8,2583.7,34.79768683]
[1751482065616,0.005,2583.8,2583.7,38.66810522]
[1751482065815,0.005,2583.8,2583.7,39.21810522]
[1751482068049,0.005,2583.8,2583.7,39.40632307]
[1751482068847,0.005,2583.8,2583.7,44.08632307]
[1751482069822,0.005,2583.8,2583.7,46.38239489]
[1751482070314,0.005,2584.3,2584.0,4.41996904]
[1751482070525,0.005,2584.3,2584.2,28.3501371]
[1751482071051,0.005,2584.3,2584.2,27.8001371]
[1751482071219,0.005,2584.3,2584.2,37.8251371]
[1751482072946,0.005,2584.3,2584.2,23.09866757]
[1751482073146,0.005,2584.3,2584.2,21.15760796]
[1751482073555,0.005,2584.3,2584.2,25.02727749]
[1751482075640,0.005,2584.3,2584.2,11.13360796]
[1751482075844,0.005,2584.3,2584.2,15.00327749]
[1751482076158,0.005,2584.3,2584.2,25.02627749]
[1751482076356,0.005,2584.3,2584.2,15.00327749]
[1751482076532,0.005,2584.3,2584.2,25.02627749]
[1751482076851,0.005,2584.3,2584.2,21.15660796]
[1751482079258,0.005,2584.3,2584.2,25.02627749]
[1751482079640,0.005,2584.3,2584.2,21.15660796]
[1751482080151,0.005,2584.3,2584.2,25.02627749]
[1751482080546,0.005,2584.3,2584.2,26.01557749]
[1751482081455,0.005,2584.3,2584.2,39.11424506]
[1751482082567,0.005,2584.3,2584.2,39.66424506]
[1751482083369,0.2028,2585.4,2585.1,0.55]
[1751482083370,0.01,2585.4,2585.1,0.55]
[1751482083566,0.01,2585.4,2585.0,0.7876]
[1751482083567,0.01,2585.4,2585.3,10.1928]
[1751482083872,0.01,2585.4,2585.3,20.06238]
[1751482084068,0.01,2585.4,2585.3,18.041]
[1751482084268,0.7868,2585.4,2584.8,9.297]
[1751482084457,0.7868,2585.4,2584.9,20.058]
[1751482085057,0.7868,2585.4,2584.9,10.0]
[1751482085258,0.7868,2585.4,2585.1,10.0]
[1751482085778,0.7868,2585.4,2585.2,8.049]
[1751482086311,0.7868,2585.4,2585.2,10.0546]
[1751482086568,0.01,2585.4,2585.2,13.92272029]
[1751482086782,0.01,2585.4,2585.2,2.0056]
[1751482087073,0.01,2585.4,2585.3,10.059]
[1751482087653,0.01,2585.4,2584.9,10.0]
[1751482087849,0.8311,2585.3,2585.1,10.0]
[1751482088051,0.8311,2585.3,2585.2,18.061]
[1751482088755,0.01,2585.4,2585.2,18.061]
[1751482090274,0.01,2585.4,2585.3,10.0]
[1751482090479,0.01,2585.4,2585.3,20.071]
[1751482091152,0.01,2585.4,2585.3,10.0]
[1751482091358,0.01,2585.4,2585.3,10.069]
[1751482092047,0.01,2585.4,2585.3,20.069]
[1751482092569,0.01,2585.4,2585.3,20.068]
[1751482093164,0.01,2585.4,2585.3,10.0]
[1751482093355,0.01,2585.4,2585.3,20.071]
[1751482093770,0.01,2585.4,2585.3,22.65771599]
[1751482094165,0.01,2585.4,2585.3,26.52573904]
[1751482094483,0.01,2585.4,2585.3,22.65771599]
[1751482094988,0.01,2585.4,2585.3,23.42871599]
[1751482095873,0.01,2585.4,2585.3,31.81171189]
[1751482096477,0.01,2585.4,2585.3,21.74071189]
[1751482096678,0.01,2585.4,2585.3,31.80971189]
[1751482097099,0.01,2585.4,2585.3,35.67773494]
[1751482097766,0.01,2585.4,2585.3,36.22773494]
[1751482098088,0.01,2585.4,2585.3,40.90773494]
[1751482098799,0.01,2585.4,2585.3,37.03971189]
[1751482099002,0.01,2585.4,2585.3,28.09871599]
[1751482099705,0.01,2585.4,2585.3,31.96673904]
[1751482099994,0.01,2585.4,2585.3,28.09871599]
[1751482100578,0.01,2585.4,2585.3,21.90573904]
[1751482100764,0.01,2585.4,2585.3,31.96673904]
[1751482101204,0.01,2585.4,2585.3,28.64871599]
[1751482101361,0.01,2585.4,2585.3,23.41471599]
[1751482101566,0.01,2585.4,2585.3,19.23173904]
[1751482101768,0.01,2585.4,2585.3,27.28173904]
[1751482101968,0.01,2585.4,2585.3,32.51173904]
[1751482102909,0.01,2585.4,2585.3,22.45573904]
[1751482103078,0.01,2585.4,2585.3,28.09171599]
[1751482103263,0.01,2585.4,2585.3,17.26671599]